bitfinex-derivatives/quotes_BTCF0:USTF0_20260214
["timestamp","ask_amount","ask_price","bid_price","bid_amount"]
[1771068709184,0.35199538,70159.0,70141.0,0.34636406]
[1771068709379,0.014259,70166.0,70153.0,0.014262]
[1771068709684,0.014259,70166.0,70154.0,0.36084406]
[1771068709875,0.01426,70163.0,70156.0,0.014261]
[1771068710079,0.01426,70165.0,70158.0,0.014261]
[1771068710280,0.01426,70164.0,70159.0,0.01448]
[1771068710480,0.028739,70169.0,70159.0,0.01448]
[1771068710685,0.01426,70165.0,70159.0,0.01448]
[1771068710883,0.35199538,70191.0,70164.0,0.34636406]
[1771068711184,0.35199538,70191.0,70160.0,0.14272]
[1771068711185,0.014255,70187.0,70173.0,0.34636406]
[1771068711480,0.014256,70184.0,70178.0,0.014257]
[1771068711676,0.014256,70184.0,70179.0,0.01448]
[1771068711872,0.014256,70184.0,70174.0,0.14268]
[1771068711873,0.014256,70183.0,70174.0,0.14268]
[1771068712174,0.35199538,70184.0,70175.0,0.01448]
[1771068712372,0.01448,70185.0,70175.0,0.01448]
[1771068712572,0.014256,70182.0,70175.0,0.01448]
[1771068712776,0.014257,70180.0,70175.0,0.01448]
[1771068712976,0.014256,70182.0,70175.0,0.01448]
[1771068713182,0.014256,70181.0,70175.0,0.01448]
[1771068713484,0.014257,70180.0,70175.0,0.01448]
[1771068714079,0.35199538,70193.0,70176.0,0.014257]
[1771068714280,0.01451,70183.0,70177.0,0.014257]
[1771068714671,0.01451,70183.0,70175.0,0.01448]
[1771068714873,0.014255,70189.0,70177.0,0.014257]
[1771068715176,0.014255,70187.0,70180.0,0.014256]
[1771068715979,0.028735,70189.0,70180.0,0.014256]
[1771068715980,0.014255,70186.0,70180.0,0.014256]
[1771068716282,0.014255,70187.0,70180.0,0.014256]
[1771068716673,0.014255,70187.0,70179.0,0.01448]
[1771068716878,0.014254,70190.0,70183.0,0.014256]
[1771068717078,0.014254,70190.0,70184.0,0.028736]
[1771068718084,0.014255,70189.0,70184.0,0.028736]
[1771068718484,0.014255,70188.0,70184.0,0.01448]
[1771068718681,0.014255,70188.0,70177.0,0.014257]
[1771068718682,0.014254,70192.0,70175.0,0.014257]
[1771068718881,0.014255,70186.0,70176.0,0.15712]
[1771068719278,0.15712,70194.0,70177.0,0.36062106]
[1771068719481,0.15712,70194.0,70187.0,0.014255]
[1771068719682,0.01448,70206.0,70194.0,0.014254]
[1771068719885,0.014253,70199.0,70193.0,0.028734]
[1771068720075,0.014251,70208.0,70196.0,0.014253]
[1771068720280,0.156889,70218.0,70197.0,0.042986]
[1771068720281,0.014251,70209.0,70197.0,0.042986]
[1771068720579,0.014252,70202.0,70194.0,0.14264]
[1771068720776,0.01448,70207.0,70196.0,0.014253]
[1771068720977,0.028731,70208.0,70202.0,0.014252]
[1771068721178,0.36492483,70226.0,70206.0,0.36402748]
[1771068721484,0.03574127,70255.0,70208.0,0.37827848]
[1771068721485,0.014249,70217.0,70208.0,0.37827848]
[1771068721686,0.014249,70217.0,70212.0,0.01425]
[1771068721888,0.01448,70224.0,70212.0,0.01448]
[1771068722083,0.014248,70222.0,70216.0,0.014249]
[1771068722278,0.028728,70224.0,70215.0,0.014249]
[1771068722592,0.014249,70215.0,70208.0,0.014251]
[1771068722886,0.014249,70215.0,70209.0,0.01448]
[1771068723084,0.014249,70215.0,70207.0,0.1426]
[1771068723282,0.36492483,70218.0,70208.0,0.01448]
[1771068723481,0.014249,70218.0,70211.0,0.01425]
[1771068723784,0.014249,70215.0,70209.0,0.01425]
[1771068723989,0.01448,70220.0,70208.0,0.01448]
[1771068724188,0.01425,70214.0,70209.0,0.01448]
[1771068724892,0.37940483,70220.0,70204.0,0.01448]
[1771068725082,0.014249,70216.0,70207.0,0.014251]
[1771068725388,0.01425,70214.0,70208.0,0.014251]
[1771068725589,0.014249,70215.0,70208.0,0.014251]
[1771068725982,0.014249,70215.0,70208.0,0.028731]
[1771068726183,0.01425,70211.0,70207.0,0.01448]
[1771068726378,0.01425,70210.0,70207.0,0.01448]
[1771068726580,0.014251,70209.0,70207.0,0.01448]
[1771068727182,0.01448,70216.0,70207.0,0.01448]
[1771068727491,0.028729,70216.0,70207.0,0.028731]
[1771068727690,0.01448,70215.0,70207.0,0.01448]
[1771068728080,0.36492483,70248.0,70213.0,0.36402748]
[1771068728281,0.014244,70242.0,70230.0,0.014246]
[1771068728586,0.014246,70233.0,70226.0,0.028727]
[1771068728782,0.014245,70235.0,70227.0,0.014247]
[1771068728978,0.014246,70234.0,70226.0,0.028727]
[1771068729184,0.014247,70229.0,70226.0,0.01448]
[1771068729383,0.014247,70229.0,70225.0,0.01448]
[1771068729691,0.014246,70230.0,70225.0,0.01448]
[1771068729884,0.014246,70231.0,70225.0,0.01448]
[1771068730686,0.014247,70228.0,70225.0,0.01448]
[1771068730888,0.39365083,70232.0,70222.0,0.171288]
[1771068731090,0.014246,70231.0,70224.0,0.014247]
[1771068732092,0.01448,70232.0,70227.0,0.014247]
[1771068732294,0.01448,70232.0,70223.0,0.014247]
[1771068732494,0.014246,70231.0,70223.0,0.014247]
[1771068732696,0.014246,70231.0,70222.0,0.15704]
[1771068733189,0.014247,70227.0,70222.0,0.15704]
[1771068733591,0.01448,70232.0,70224.0,0.014247]
[1771068733796,0.014246,70230.0,70223.0,0.014248]
[1771068733992,0.01448,70232.0,70222.0,0.15704]
[1771068734194,0.01444,70231.0,70223.0,0.014248]
[1771068734393,0.014244,70240.0,70226.0,0.014247]
[1771068734592,0.711918,70272.0,70224.0,0.36402748]
[1771068734593,0.014245,70239.0,70231.0,0.014246]
[1771068734798,0.014245,70239.0,70232.0,0.014246]
[1771068735101,0.014245,70238.0,70231.0,0.01444]
[1771068735298,0.014244,70239.0,70232.0,0.014246]
[1771068735690,0.014244,70243.0,70234.0,0.014245]
[1771068735892,0.014244,70242.0,70236.0,0.014245]
[1771068736694,0.014244,70242.0,70227.0,0.37827448]
[1771068736695,0.36492483,70265.0,70241.0,0.36402748]
[1771068736895,0.36492483,70265.0,70216.0,0.13861803]
[1771068736896,0.14252,70275.0,70255.0,0.36402748]
[1771068737095,0.014237,70278.0,70267.0,0.014239]
[1771068737302,0.01444,70277.0,70268.0,0.014238]
[1771068737488,0.01444,70277.0,70271.0,0.014238]
[1771068737693,0.028677,70277.0,70271.0,0.014238]
[1771068737893,0.028677,70276.0,70270.0,0.014238]
[1771068738198,0.014237,70274.0,70267.0,0.014239]
[1771068738396,0.36492483,70303.0,70275.0,0.36402748]
[1771068738595,0.36492483,70289.0,70276.0,0.15696]
[1771068738800,0.014236,70281.0,70277.0,0.01444]
[1771068739000,0.014236,70280.0,70277.0,0.01444]
[1771068739302,0.014235,70286.0,70280.0,0.014236]
[1771068739499,0.014236,70283.0,70278.0,0.014236]
[1771068739798,0.028675,70284.0,70278.0,0.014236]
[1771068739994,0.36492483,70299.0,70276.0,0.107824]
[1771068740194,0.014234,70293.0,70286.0,0.014235]
[1771068740394,0.14248,70302.0,70293.0,0.014233]
[1771068740600,0.014232,70299.0,70290.0,0.014234]
[1771068740996,0.014232,70299.0,70276.0,0.107824]
[1771068740997,0.36492483,70299.0,70263.0,0.36402748]
[1771068741198,0.36492483,70299.0,70210.0,1.22246242]
[1771068741199,0.01424,70263.0,70255.0,0.156721]
[1771068741503,0.028678,70269.0,70261.0,0.01424]
[1771068741701,0.01444,70268.0,70261.0,0.01424]
[1771068741903,0.028679,70268.0,70261.0,0.01424]
[1771068742302,0.01444,70268.0,70266.0,0.014239]
[1771068742506,0.01444,70268.0,70257.0,0.014241]
[1771068742706,0.01444,70268.0,70263.0,0.014239]
[1771068743098,0.014239,70267.0,70260.0,0.02868]
[1771068743294,0.014239,70267.0,70261.0,0.01424]
[1771068743505,0.014241,70257.0,70252.0,0.14248]
[1771068743808,0.014242,70249.0,70244.0,0.004482]
[1771068744105,0.01444,70248.0,70237.0,0.00016705]
[1771068744305,0.014243,70246.0,70240.0,0.014244]
[1771068744508,0.01444,70248.0,70243.0,0.014244]
[1771068744806,0.01444,70248.0,70244.0,0.014243]
[1771068745004,0.028683,70247.0,70237.0,0.00016705]
[1771068745208,0.014244,70241.0,70237.0,0.00016705]
[1771068745403,0.014245,70238.0,70237.0,0.00016705]
[1771068745607,0.00012339,70238.0,70235.0,0.014245]
[1771068745802,0.00012339,70238.0,70234.0,0.014245]
[1771068746002,0.00012339,70238.0,70236.0,0.014245]
[1771068746307,0.00012339,70238.0,70233.0,0.01444]
[1771068746605,0.014245,70237.0,70230.0,0.14244]
[1771068746904,0.014245,70236.0,70230.0,0.14244]
[1771068747209,0.014244,70239.0,70230.0,0.14244]
[1771068747404,0.014245,70238.0,70231.0,0.01444]
[1771068747705,0.014245,70236.0,70231.0,0.01444]
[1771068748102,4.366e-05,70235.0,70231.0,0.01444]
[1771068748304,4.366e-05,70235.0,70231.0,0.028686]
[1771068748702,4.366e-05,70235.0,70230.0,0.14244]
[1771068748703,0.014246,70232.0,70230.0,0.14244]
[1771068748906,0.014246,70231.0,70230.0,0.14244]
[1771068749508,0.014246,70231.0,70226.0,0.01444]
[1771068749808,0.014247,70227.0,70221.0,0.14244]
[1771068750401,4.366e-05,70235.0,70221.0,0.14244]
[1771068750402,0.14244,70248.0,70238.0,0.014245]
[1771068750600,0.014242,70250.0,70238.0,0.014245]
[1771068750805,0.014243,70248.0,70233.0,0.01444]
[1771068751007,0.014243,70246.0,70239.0,0.014244]
[1771068751911,0.014243,70245.0,70238.0,0.014245]
[1771068752620,0.014243,70244.0,70237.0,0.04293]
[1771068752812,0.014244,70240.0,70237.0,0.01444]
[1771068753115,0.014243,70245.0,70238.0,0.014245]
[1771068753412,0.014243,70244.0,70238.0,0.014245]
[1771068753609,0.01444,70258.0,70247.0,0.014243]
[1771068753816,0.15668,70259.0,70250.0,0.014242]
[1771068754004,0.014241,70255.0,70247.0,0.014243]
[1771068754208,0.014244,70243.0,70236.0,0.014245]
[1771068754411,0.014243,70244.0,70232.0,0.01444]
[1771068754609,0.014244,70239.0,70232.0,0.01444]
[1771068754910,0.014245,70235.0,70227.0,0.14244]
[1771068755113,0.014245,70235.0,70228.0,0.014247]
[1771068755307,0.014245,70237.0,70229.0,0.014246]
[1771068755613,0.014245,70235.0,70228.0,0.014246]
[1771068755912,0.028685,70235.0,70229.0,0.014246]
[1771068756107,0.01444,70235.0,70229.0,0.014246]
[1771068756313,0.01444,70235.0,70230.0,0.014246]
[1771068757006,0.014245,70237.0,70231.0,0.014246]
[1771068757205,0.37300152,70230.0,70204.0,0.38069466]
[1771068757404,0.014248,70221.0,70208.0,0.36644266]
[1771068757616,0.014248,70220.0,70213.0,0.01425]
[1771068757918,0.014249,70217.0,70212.0,0.01444]
[1771068758109,0.014249,70216.0,70212.0,0.01444]
[1771068758415,0.028688,70221.0,70211.0,0.01444]
[1771068758718,0.014249,70218.0,70211.0,0.02869]
[1771068759014,0.014249,70217.0,70211.0,0.02869]
[1771068759216,0.014249,70218.0,70211.0,0.01425]
[1771068759407,0.014248,70220.0,70211.0,0.01444]
[1771068759606,0.01444,70221.0,70211.0,0.01425]
[1771068759607,0.014249,70218.0,70211.0,0.01425]
[1771068759807,0.014249,70216.0,70210.0,0.01444]
[1771068760010,0.01425,70213.0,70207.0,0.01444]
[1771068760215,0.01425,70211.0,70207.0,0.01444]
[1771068760510,0.01425,70211.0,70206.0,0.00113634]
[1771068761305,0.01444,70213.0,70206.0,0.00113634]
[1771068761506,0.01425,70212.0,70206.0,0.00113634]
[1771068762213,0.01425,70211.0,70206.0,0.00113634]
[1771068762414,0.014251,70207.0,70206.0,0.00113634]
[1771068762616,0.014251,70208.0,70203.0,0.15688]
[1771068763015,0.014251,70209.0,70203.0,0.15688]
[1771068763210,0.014251,70208.0,70203.0,0.15688]
[1771068763611,0.014251,70207.0,70203.0,0.15688]
[1771068763918,0.014251,70208.0,70203.0,0.15688]
[1771068764217,0.014251,70208.0,70203.0,0.171132]
[1771068764516,0.028691,70209.0,70203.0,0.156692]
[1771068764817,0.014251,70208.0,70203.0,0.014252]
[1771068765321,0.014251,70206.0,70202.0,0.00015577]
[1771068765514,0.00015577,70205.0,70201.0,0.014252]
[1771068765812,0.014252,70203.0,70197.0,0.014253]
[1771068766217,0.014252,70202.0,70196.0,0.014253]
[1771068766913,0.014252,70202.0,70197.0,0.014253]
[1771068767214,0.01444,70204.0,70201.0,0.014252]
[1771068767611,0.01444,70204.0,70200.0,0.014252]
[1771068767808,0.01444,70204.0,70195.0,0.014253]
[1771068768122,0.01444,70204.0,70197.0,0.014253]
[1771068768319,0.01444,70204.0,70198.0,0.014253]
[1771068768517,0.01425,70214.0,70194.0,0.14248]
[1771068768518,0.37524278,70238.0,70211.0,0.37696483]
[1771068768719,0.37524278,70236.0,70219.0,0.014248]
[1771068768910,0.014244,70244.0,70217.0,0.014249]
[1771068768911,0.014248,70224.0,70217.0,0.014249]
[1771068769220,0.014248,70222.0,70217.0,0.014249]
[1771068769609,0.014248,70221.0,70216.0,0.01444]
[1771068769819,0.014249,70219.0,70211.0,0.01425]
[1771068770118,0.014249,70218.0,70212.0,0.01425]
[1771068770321,0.014249,70217.0,70210.0,0.01425]
[1771068770518,0.014249,70217.0,70211.0,0.01425]
[1771068770720,0.014249,70218.0,70202.0,0.156772]
[1771068770721,0.014249,70216.0,70202.0,0.14252]
[1771068771021,0.01444,70215.0,70206.0,0.014251]
[1771068771213,0.028689,70215.0,70208.0,0.014251]
[1771068772321,0.01425,70214.0,70208.0,0.014251]
[1771068773521,0.01425,70211.0,70204.0,0.014251]
[1771068773818,0.014248,70221.0,70214.0,0.014249]
[1771068774025,0.028688,70220.0,70214.0,0.014249]
[1771068774921,0.01444,70220.0,70214.0,0.014249]
[1771068775424,0.01444,70220.0,70216.0,0.014249]
[1771068775626,0.01444,70221.0,70217.0,0.014249]
[1771068775923,0.014249,70219.0,70213.0,0.02869]
[1771068777122,0.014249,70219.0,70214.0,0.014249]
[1771068777427,0.028688,70221.0,70205.0,0.01444]
[1771068777428,0.01425,70210.0,70205.0,0.01444]
[1771068777616,0.01425,70210.0,70204.0,0.01444]
[1771068777821,0.028691,70209.0,70203.0,0.014252]
[1771068778021,0.014251,70207.0,70199.0,0.01444]
[1771068778224,0.028691,70208.0,70201.0,0.014252]
[1771068778516,0.014252,70205.0,70199.0,0.028692]
[1771068778822,0.01444,70204.0,70187.0,0.14252]
[1771068779027,0.014253,70197.0,70191.0,0.014254]
[1771068779222,0.014253,70196.0,70189.0,0.014254]
[1771068779621,0.01444,70199.0,70190.0,0.014254]
[1771068779929,0.014253,70195.0,70189.0,0.014255]
[1771068780221,0.014254,70193.0,70187.0,0.14252]
[1771068780424,0.028694,70194.0,70187.0,0.156775]
[1771068780624,0.014254,70193.0,70187.0,0.14252]
[1771068780824,0.028694,70194.0,70188.0,0.014255]
[1771068781020,0.028694,70194.0,70185.0,0.014255]
[1771068781224,0.014254,70193.0,70185.0,0.014255]
[1771068781427,0.014254,70192.0,70186.0,0.014255]
[1771068781825,0.014254,70190.0,70184.0,0.028695]
[1771068782025,0.014254,70192.0,70184.0,0.01444]
[1771068782226,0.014254,70193.0,70187.0,0.014255]
[1771068782421,0.028694,70194.0,70184.0,0.01444]
[1771068782629,0.014254,70192.0,70185.0,0.014255]
[1771068782824,0.014255,70188.0,70182.0,0.028696]
[1771068783034,0.01444,70190.0,70182.0,0.01444]
[1771068783426,0.014255,70185.0,70182.0,0.01444]
[1771068783623,0.014255,70186.0,70179.0,0.14252]
[1771068783624,0.014256,70184.0,70179.0,0.14252]
[1771068783828,0.01444,70186.0,70176.0,0.014257]
[1771068784027,0.014255,70185.0,70178.0,0.014257]
[1771068784228,0.01444,70186.0,70176.0,0.01444]
[1771068784428,0.01444,70186.0,70178.0,0.014257]
[1771068784429,0.014255,70185.0,70178.0,0.014257]
[1771068784732,0.014256,70180.0,70174.0,0.028698]
[1771068784933,0.014256,70181.0,70175.0,0.014257]
[1771068785430,0.028696,70182.0,70174.0,0.01444]
[1771068785431,0.014257,70179.0,70174.0,0.01444]
[1771068785631,0.014257,70179.0,70154.0,0.014262]
[1771068785632,0.014257,70177.0,70169.0,0.014258]
[1771068785931,0.014258,70174.0,70168.0,0.01444]
[1771068786133,0.014257,70175.0,70168.0,0.028699]
[1771068786333,0.014257,70175.0,70169.0,0.014259]
[1771068786634,0.014257,70176.0,70169.0,0.014259]
[1771068786836,0.028697,70177.0,70170.0,0.014258]
[1771068787223,0.014257,70176.0,70169.0,0.014259]
[1771068787427,0.01444,70177.0,70173.0,0.014258]
[1771068787624,0.01444,70185.0,70180.0,0.014256]
[1771068787934,0.01444,70185.0,70179.0,0.014257]
[1771068788329,0.01444,70184.0,70181.0,0.014256]
[1771068788533,0.01444,70184.0,70179.0,0.014256]
[1771068788728,0.014256,70181.0,70176.0,0.01444]
[1771068788928,0.028696,70184.0,70182.0,0.014256]
[1771068788929,0.01444,70184.0,70182.0,0.014256]
[1771068789234,0.01444,70183.0,70182.0,0.014256]
[1771068789434,0.01444,70183.0,70181.0,0.014256]
[1771068789627,0.01444,70183.0,70180.0,0.014256]
[1771068789835,0.014255,70188.0,70181.0,0.014256]
[1771068790034,0.01444,70187.0,70181.0,0.014256]
[1771068791038,0.01444,70187.0,70176.0,0.01444]
[1771068791039,0.014255,70185.0,70179.0,0.014256]
[1771068791430,0.01444,70184.0,70179.0,0.014256]
[1771068791633,0.01444,70184.0,70177.0,0.014257]
[1771068791936,0.028696,70184.0,70178.0,0.014257]
[1771068792137,0.01444,70184.0,70178.0,0.014257]
[1771068794639,0.014251,70208.0,70202.0,0.014252]
[1771068795530,0.028691,70209.0,70202.0,0.014252]
[1771068795729,0.014251,70208.0,70202.0,0.014252]
[1771068795932,0.028691,70209.0,70202.0,0.014252]
[1771068796938,0.028691,70209.0,70202.0,0.028504]
[1771068797134,0.028691,70209.0,70203.0,0.014252]
[1771068797338,0.014251,70208.0,70202.0,0.014252]
[1771068797533,0.014251,70208.0,70201.0,0.014252]
[1771068797734,0.014251,70208.0,70202.0,0.014252]
[1771068797933,0.01444,70207.0,70203.0,0.014252]
[1771068800339,0.14256,70212.0,70209.0,0.01425]
[1771068800538,0.14252,70221.0,70219.0,0.014248]
[1771068800734,0.14252,70221.0,70210.0,0.01425]
[1771068800735,0.014249,70217.0,70210.0,0.01425]
[1771068801043,0.014247,70228.0,70221.0,0.014248]
[1771068801342,0.15696,70227.0,70221.0,0.014248]
[1771068801539,0.15696,70227.0,70216.0,0.014249]
[1771068801540,0.014247,70226.0,70220.0,0.014248]
[1771068802343,0.014247,70226.0,70220.0,0.028496]
[1771068802532,0.014247,70226.0,70221.0,0.014248]
[1771068802735,0.014247,70226.0,70220.0,0.014248]
[1771068802736,0.014247,70225.0,70220.0,0.014248]
[1771068802940,0.01444,70224.0,70220.0,0.014248]
[1771068803440,0.01444,70224.0,70216.0,0.014249]
[1771068803845,0.01444,70224.0,70220.0,0.014248]
[1771068804042,0.01444,70224.0,70221.0,0.014248]
[1771068804247,0.014247,70226.0,70221.0,0.014248]
[1771068804546,0.01444,70225.0,70221.0,0.014248]
[1771068805843,0.01444,70225.0,70222.0,0.014248]
[1771068806144,0.01444,70225.0,70212.0,0.38064165]
[1771068806145,0.14252,70231.0,70228.0,0.014246]
[1771068806350,0.014245,70236.0,70229.0,0.014246]
[1771068806645,0.028685,70235.0,70229.0,0.014246]
[1771068806845,0.39706987,70242.0,70229.0,0.014246]
[1771068806846,0.01444,70240.0,70236.0,0.014245]
[1771068807139,0.01444,70240.0,70235.0,0.014245]
[1771068807344,0.014244,70239.0,70230.0,0.014246]
[1771068807542,0.014245,70239.0,70233.0,0.014246]
[1771068807842,0.014247,70227.0,70222.0,0.014248]
[1771068808042,0.014246,70230.0,70220.0,0.01444]
[1771068808242,0.014247,70227.0,70223.0,0.014248]
[1771068808444,0.014247,70227.0,70222.0,0.014248]
[1771068808843,0.014247,70227.0,70222.0,0.001]
[1771068809039,0.014247,70228.0,70222.0,0.001]
[1771068809348,0.014247,70226.0,70220.0,0.014248]
[1771068809535,0.014247,70226.0,70221.0,0.014248]
[1771068809946,0.013824,70229.0,70228.0,0.014247]
[1771068810151,0.014245,70239.0,70233.0,0.014246]
[1771068810444,0.124645,70238.0,70233.0,0.014246]
[1771068810634,0.014245,70237.0,70233.0,0.014246]
[1771068810841,0.014245,70236.0,70232.0,0.014246]
[1771068811038,0.014245,70235.0,70230.0,0.014246]
[1771068811351,0.014245,70235.0,70227.0,0.014247]
[1771068811352,0.014246,70232.0,70227.0,0.014247]
[1771068812049,0.014246,70233.0,70228.0,0.014247]
[1771068812249,0.014245,70237.0,70231.0,0.014246]
[1771068812447,0.01444,70236.0,70231.0,0.014246]
[1771068812951,0.014245,70234.0,70229.0,0.014246]
[1771068813143,0.014245,70234.0,70230.0,0.014246]
[1771068813339,0.014246,70232.0,70223.0,0.01444]
[1771068813651,0.01444,70236.0,70228.0,0.014247]
[1771068813652,0.014246,70233.0,70228.0,0.014247]
[1771068814445,0.014246,70233.0,70222.0,0.36984422]
[1771068814446,0.01424,70263.0,70258.0,0.01424]
[1771068814743,0.01424,70263.0,70256.0,0.014241]
[1771068814949,0.01424,70262.0,70256.0,0.014241]
[1771068815347,0.01424,70261.0,70255.0,0.014241]
[1771068815651,0.01424,70260.0,70255.0,0.014241]
[1771068816144,0.014241,70256.0,70252.0,0.01444]
[1771068816346,0.01444,70258.0,70250.0,0.014242]
[1771068816540,0.01444,70258.0,70252.0,0.014242]
[1771068816541,0.014241,70257.0,70252.0,0.014242]
[1771068816849,0.014242,70253.0,70249.0,0.01444]
[1771068817047,0.014241,70254.0,70249.0,0.028682]
[1771068817344,0.014242,70250.0,70245.0,0.014243]
[1771068817548,0.01444,70256.0,70244.0,0.01444]
[1771068817549,0.014242,70254.0,70244.0,0.01444]
[1771068817842,0.014242,70254.0,70247.0,0.014243]
[1771068817843,0.014242,70253.0,70247.0,0.014243]
[1771068818042,0.01444,70252.0,70247.0,0.014243]
[1771068818246,0.028682,70252.0,70244.0,0.028683]
[1771068818453,0.36188532,70248.0,70224.0,0.14248]
[1771068818650,0.014246,70230.0,70222.0,0.01444]
[1771068818950,0.01444,70232.0,70226.0,0.014247]
[1771068819158,0.01444,70232.0,70227.0,0.014247]
[1771068819359,0.028686,70232.0,70227.0,0.014247]
[1771068819545,0.01444,70232.0,70227.0,0.014247]
[1771068819852,0.028686,70232.0,70226.0,0.014247]
[1771068820052,0.14248,70238.0,70200.0,0.28195946]
[1771068820053,0.014244,70242.0,70236.0,0.014245]
[1771068820247,0.14248,70245.0,70239.0,0.40423934]
[1771068820450,0.014244,70243.0,70238.0,0.014244]
[1771068820646,0.014244,70242.0,70237.0,0.014245]
[1771068820845,0.014244,70243.0,70237.0,0.014245]
[1771068821744,0.014245,70237.0,70232.0,0.014246]
[1771068821945,0.014244,70241.0,70234.0,0.014245]
[1771068822145,0.01444,70244.0,70236.0,0.014245]
[1771068822852,0.014244,70241.0,70225.0,0.014247]
[1771068823056,0.014246,70233.0,70225.0,0.014247]
[1771068823248,0.01444,70234.0,70225.0,0.014247]
[1771068823556,0.014243,70245.0,70239.0,0.014244]
[1771068823752,0.028682,70249.0,70243.0,0.014243]
[1771068824050,0.028682,70249.0,70239.0,0.014244]
[1771068824051,0.014242,70253.0,70242.0,0.41848334]
[1771068824354,0.014243,70249.0,70244.0,0.014243]
[1771068824557,0.014243,70248.0,70242.0,0.014244]
[1771068824742,0.014242,70250.0,70243.0,0.014244]
[1771068824948,0.014242,70251.0,70242.0,0.014244]
[1771068825244,0.014243,70248.0,70243.0,0.014244]
[1771068825755,0.028682,70252.0,70247.0,0.014243]
[1771068826055,0.01444,70252.0,70250.0,0.014242]
[1771068826250,0.014241,70254.0,70249.0,0.014242]
[1771068826454,0.014241,70254.0,70248.0,0.014242]
[1771068826455,0.01444,70256.0,70252.0,0.014242]
[1771068826654,0.01444,70256.0,70248.0,0.41848234]
[1771068826655,0.00018796,70256.0,70251.0,0.014242]
[1771068826855,0.00018796,70256.0,70252.0,0.014242]
[1771068827748,0.01444,70255.0,70252.0,0.014242]
[1771068828051,0.01424,70262.0,70252.0,0.014242]
[1771068828052,0.014241,70257.0,70252.0,0.014242]
[1771068828248,0.01424,70262.0,70251.0,0.014242]
[1771068828249,0.01444,70255.0,70251.0,0.014242]
[1771068828453,0.01444,70256.0,70252.0,0.014242]
[1771068829149,0.028681,70256.0,70251.0,0.014242]
[1771068829551,0.01444,70256.0,70251.0,0.014242]
[1771068830155,0.01444,70256.0,70252.0,0.014242]
[1771068830350,0.014242,70252.0,70247.0,0.028683]
[1771068830548,0.01444,70256.0,70240.0,0.40423934]
[1771068830549,0.01444,70256.0,70243.0,0.014243]
[1771068830753,0.01444,70256.0,70248.0,0.014242]
[1771068830754,0.014241,70254.0,70248.0,0.014242]
[1771068831155,0.028483,70254.0,70248.0,0.014242]
[1771068831351,0.014241,70254.0,70249.0,0.014242]
[1771068831751,0.014241,70254.0,70249.0,0.028484]
[1771068831954,0.014241,70254.0,70250.0,0.014242]
[1771068832156,0.01444,70254.0,70248.0,0.014243]
[1771068832356,0.014242,70251.0,70245.0,0.01444]
[1771068832561,0.014242,70252.0,70245.0,0.014243]
[1771068832860,0.014242,70253.0,70245.0,0.014243]
[1771068833359,0.014242,70250.0,70245.0,0.014243]
[1771068833663,0.014243,70248.0,70243.0,0.028684]
[1771068833963,0.014243,70248.0,70243.0,0.01444]
[1771068834164,0.028486,70246.0,70241.0,0.01444]
[1771068834461,0.028682,70250.0,70240.0,0.01444]
[1771068834652,0.014243,70248.0,70240.0,0.014244]
[1771068834858,0.014243,70246.0,70240.0,0.028488]
[1771068835055,0.028682,70250.0,70240.0,0.028684]
[1771068835257,0.014243,70245.0,70240.0,0.028684]
[1771068835458,0.028682,70250.0,70240.0,0.028684]
[1771068835760,0.014243,70245.0,70240.0,0.028684]
[1771068835960,0.014242,70249.0,70240.0,0.028684]
[1771068837161,0.014244,70243.0,70240.0,0.01444]
[1771068837362,0.014242,70249.0,70240.0,0.01444]
[1771068837563,0.014244,70244.0,70240.0,0.01444]
[1771068837763,0.014243,70244.0,70240.0,0.01444]
[1771068837962,0.014243,70245.0,70240.0,0.028684]
[1771068838559,0.014243,70246.0,70217.0,0.014249]
[1771068838560,0.014247,70224.0,70217.0,0.014249]
[1771068838762,0.014246,70233.0,70223.0,0.014248]
[1771068838966,0.014246,70231.0,70227.0,0.014247]
[1771068839663,0.00013596,70230.0,70229.0,0.014246]
[1771068839962,0.014246,70233.0,70227.0,0.014247]
[1771068840161,0.014246,70233.0,70228.0,0.014247]
[1771068840663,0.014246,70231.0,70222.0,0.41867934]
[1771068840858,0.014247,70229.0,70223.0,0.014248]
[1771068841164,0.01444,70231.0,70223.0,0.014248]
[1771068841351,0.014246,70229.0,70215.0,0.014249]
[1771068841557,0.014248,70220.0,70216.0,0.014249]
[1771068841754,0.01425,70211.0,70201.0,0.014252]
[1771068841961,0.01425,70214.0,70207.0,0.014251]
[1771068842259,0.01425,70214.0,70208.0,0.014251]
[1771068842562,0.01425,70214.0,70205.0,0.01444]
[1771068842756,0.01444,70216.0,70205.0,0.01444]
[1771068842757,0.014251,70207.0,70205.0,0.01444]
[1771068842958,0.14244,70221.0,70201.0,0.01444]
[1771068842959,0.014252,70204.0,70201.0,0.01444]
[1771068843161,0.014251,70206.0,70201.0,0.028692]
[1771068843365,0.014251,70207.0,70201.0,0.01444]
[1771068843558,0.0002,87640.0,70222.0,0.014248]
[1771068843559,0.014246,70231.0,70222.0,0.014248]
[1771068843758,0.014247,70229.0,70220.0,0.39775951]
[1771068843961,0.014247,70227.0,70220.0,0.39775951]
[1771068844162,0.01444,70230.0,70220.0,0.39775951]
[1771068844362,0.01444,70230.0,70224.0,0.014247]
[1771068844562,0.01444,70229.0,70220.0,0.014248]
[1771068844760,0.01444,70229.0,70222.0,0.014248]
[1771068845165,0.028687,70229.0,70224.0,0.014247]
[1771068845462,0.014247,70227.0,70223.0,0.014248]